bitfinex/quotes_BTCUSD_20250303
["timestamp","ask_amount","ask_price","bid_price","bid_amount"]
[1741027006135,0.0479,88212.0,88129.0,0.3]
[1741027006293,0.034134,88215.0,88141.0,0.31454085]
[1741027006498,0.00159326,88223.0,88168.0,0.226837]
[1741027006698,0.00159326,88228.0,88169.0,0.19978727]
[1741027007018,0.46779181,88220.0,88169.0,0.19978727]
[1741027007365,0.3,88199.0,88170.0,0.00158728]
[1741027007594,0.226831,88171.0,88170.0,0.01997873]
[1741027007763,0.46779181,88200.0,88146.0,0.1978]
[1741027007764,0.1,88197.0,88146.0,0.1978]
[1741027007962,0.46779181,88180.0,88143.0,0.00158789]
[1741027008202,0.00159326,88179.0,88144.0,0.00158799]
[1741027008375,0.46779181,88180.0,88130.0,0.00158794]
[1741027008576,0.226852,88164.0,88144.0,0.226899]
[1741027008723,0.46779181,88180.0,88145.0,0.0226899]
[1741027008930,0.46779181,88180.0,88146.0,0.00158798]
[1741027008931,0.226865,88159.0,88146.0,0.00158798]
[1741027009282,0.226844,88166.0,88140.0,0.00158801]
[1741027009514,0.226844,88166.0,88132.0,0.22693]
[1741027009515,0.3,88177.0,88133.0,0.00158798]
[1741027009769,0.226832,88171.0,88139.0,0.226911]
[1741027010010,0.3,88177.0,88105.0,0.453999]
[1741027010011,0.3,88177.0,88140.0,0.02443796]
[1741027010236,0.3,88177.0,88111.0,0.01454085]
[1741027010237,0.226891,88149.0,88131.0,0.226934]
[1741027010456,0.46779181,88170.0,88132.0,0.00158814]
[1741027010668,0.00159326,88169.0,88132.0,0.00158814]
[1741027010889,0.46779181,88170.0,88127.0,0.00158816]
[1741027011108,0.226931,88133.0,88128.0,0.01997882]
[1741027011277,0.4,88166.0,88128.0,0.01997882]
[1741027011533,0.3,88163.0,88114.0,0.00158828]
[1741027011730,0.3,88163.0,88106.0,0.27418]
[1741027011731,0.226919,88137.0,88121.0,0.226958]
[1741027011969,0.3,88163.0,88122.0,0.0015884]
[1741027012148,0.3,88159.0,88114.0,0.226977]
[1741027012345,0.00159326,88158.0,88115.0,0.04698497]
[1741027012649,0.00159326,88163.0,88115.0,0.04698497]
[1741027012996,0.226898,88146.0,88117.0,0.22697]
[1741027013188,0.22691,88141.0,88118.0,0.0015884]
[1741027013406,0.01778576,88152.0,88118.0,0.0015884]
[1741027014253,0.01778576,88152.0,88121.0,0.5674]
[1741027014453,0.01778576,88152.0,88123.0,0.3]
[1741027014655,0.01778576,88152.0,88124.0,0.19550798]
[1741027015066,0.226902,88144.0,88124.0,0.19550798]
[1741027015314,0.46779181,88150.0,88124.0,0.19550798]
[1741027015532,0.46779181,88150.0,88125.0,0.00158832]
[1741027015683,0.22692,88137.0,88126.0,0.02144594]
[1741027015903,0.46779181,88150.0,88126.0,0.02144594]
[1741027016100,0.226914,88140.0,88126.0,0.02303435]
[1741027016299,0.46779181,88150.0,88126.0,0.02303435]
[1741027016672,0.226911,88140.0,88126.0,0.02303435]
[1741027017026,0.46779181,88150.0,88127.0,0.04290171]
[1741027017232,0.46779181,88150.0,88125.0,0.00158841]
[1741027017445,0.226921,88137.0,88125.0,0.00158841]
[1741027017669,0.46779181,88150.0,88125.0,0.00158841]
[1741027017670,0.05142294,88149.0,88125.0,0.00158841]
[1741027017877,0.226897,88146.0,88125.0,0.00158841]
[1741027018077,0.05142294,88149.0,88125.0,0.00158841]
[1741027018294,0.226908,88142.0,88127.0,0.226942]
[1741027018496,0.27831294,88149.0,88129.0,0.22694]
[1741027018676,0.27831294,88149.0,88130.0,0.00158822]
[1741027018677,0.05142294,88149.0,88130.0,0.00158822]
[1741027019051,0.05142294,88149.0,88148.0,0.226891]
[1741027019254,0.00159326,88187.0,88174.0,0.226821]
[1741027019495,0.3,88189.0,88150.0,0.226884]
[1741027019739,0.09196791,88202.0,88151.0,0.00158794]
[1741027019973,0.09196791,88202.0,88196.0,0.226767]
[1741027020136,4e-07,88197.0,88196.0,0.417527]
[1741027020431,0.1,88260.0,88196.0,0.417527]
[1741027020432,0.46779181,88270.0,88203.0,0.0752]
[1741027020678,0.0116941,88266.0,88214.0,0.340079]
[1741027020899,0.226618,88254.0,88215.0,0.00158613]
[1741027021103,0.46779181,88250.0,88215.0,0.00158613]
[1741027021226,0.226735,88209.0,88197.0,0.00158686]
[1741027021430,0.00159326,88249.0,88184.0,0.0804]
[1741027021431,0.46779181,88250.0,88189.0,0.00158686]
[1741027021616,0.46779181,88230.0,88190.0,0.0097853]
[1741027021823,0.46779181,88230.0,88190.0,0.00819869]
[1741027021824,0.00159326,88229.0,88190.0,0.00819869]
[1741027022024,0.46779181,88240.0,88191.0,0.00158723]
[1741027022227,0.46779181,88260.0,88192.0,0.01454085]
[1741027022425,0.01979723,88228.0,88200.0,0.01454085]
[1741027022703,0.01776813,88261.0,88254.0,0.226618]
[1741027022890,0.01776813,88261.0,88242.0,0.19132]
[1741027023091,0.00159326,88260.0,88217.0,0.19164]
[1741027023397,0.46779181,88252.0,88217.0,0.19322657]
[1741027023600,0.01776574,88246.0,88217.0,0.19322674]
[1741027023821,0.01776574,88246.0,88218.0,0.04199417]
[1741027023993,0.01776574,88246.0,88219.0,0.00158641]
[1741027024360,0.01776574,88246.0,88221.0,0.226701]
[1741027024564,0.01776574,88246.0,88218.0,0.04199417]
[1741027024565,0.01776574,88246.0,88222.0,0.00158642]
[1741027024775,0.01776574,88246.0,88230.0,0.226677]
[1741027024974,0.226641,88245.0,88231.0,0.02425407]
[1741027025174,0.3,88266.0,88231.0,0.0226677]
[1741027025403,0.01454085,88264.0,88218.0,0.0015865]
[1741027025718,0.01454085,88264.0,88217.0,0.19164]
[1741027025719,0.226646,88244.0,88217.0,0.19164]
[1741027025918,0.46779181,88250.0,88217.0,0.19164]
[1741027025919,0.46779181,88250.0,88218.0,0.00158658]
[1741027026125,0.30159326,88249.0,88217.0,0.19164]
[1741027026281,0.226694,88225.0,88197.0,0.226764]
[1741027026523,0.46779181,88230.0,88187.0,0.22679]
[1741027026893,1.133152,88250.0,88176.0,0.082]
[1741027026894,0.226772,88194.0,88176.0,0.082]
[1741027027105,0.3,88209.0,88166.0,0.19036]
[1741027027252,0.46779181,88210.0,88170.0,0.00158753]
[1741027027455,0.46779181,88210.0,88171.0,0.01919475]
[1741027027654,0.46779181,88230.0,88172.0,0.00158718]
[1741027027817,0.00159326,88229.0,88172.0,0.00158718]
[1741027028017,0.80789081,88210.0,88172.0,0.00158718]
[1741027028223,0.46779181,88210.0,88183.0,0.226798]
[1741027028477,0.3,88229.0,88184.0,0.02426706]
[1741027028636,0.46779181,88230.0,88184.0,0.00158726]
[1741027028637,0.00159326,88228.0,88184.0,0.00158726]
[1741027028837,0.46779181,88210.0,88172.0,0.00158714]
[1741027029035,0.3,88193.0,88147.0,0.00158744]
[1741027029397,0.01454085,88204.0,88136.0,0.0762]
[1741027029398,0.226886,88150.0,88148.0,0.01911874]
[1741027029535,0.3,88179.0,88139.0,0.0003386]
[1741027029721,0.00159326,88178.0,88140.0,0.001588]
[1741027029923,0.226858,88161.0,88141.0,0.00781266]
[1741027030349,0.226858,88161.0,88139.0,0.0003386]
[1741027030350,0.00159326,88160.0,88139.0,0.0003386]
[1741027030618,0.226911,88140.0,88139.0,0.0003386]
[1741027031261,0.22570863,88140.0,88139.0,0.0003386]
[1741027031538,0.22570863,88140.0,88139.0,6e-07]
[1741027031754,0.52570863,88140.0,88139.0,6e-07]
[1741027031894,0.52695,88125.0,88124.0,6e-07]
[1741027032498,0.22695,88125.0,88124.0,6e-07]
[1741027032941,0.3,88126.0,88074.0,0.00158905]
[1741027032942,0.340484,88110.0,88074.0,0.00126705]
[1741027033187,0.3,88126.0,88075.0,0.0175999]
[1741027033188,0.227076,88076.0,88075.0,0.0175999]
[1741027033469,0.227117,88060.0,88054.0,0.0101298]
[1741027034447,0.527117,88060.0,88054.0,0.0101298]
[1741027034915,0.54492006,88060.0,88054.0,0.0101298]
[1741027035114,0.27853948,88060.0,88054.0,0.0101298]
[1741027035262,0.05142248,88060.0,88054.0,0.0101298]
[1741027036427,0.227117,88060.0,88054.0,0.0101298]
[1741027037068,0.46779181,88100.0,88054.0,0.0101298]
[1741027037269,0.46779181,88100.0,88060.0,0.00158951]
[1741027037471,0.46779181,88100.0,88062.0,0.0805]
[1741027037689,0.05115969,88090.0,88077.0,0.227071]
[1741027037868,0.227046,88088.0,88063.0,0.02688063]
[1741027038082,0.05115969,88090.0,88073.0,0.227082]
[1741027038248,0.05115969,88090.0,88074.0,0.00158923]
[1741027038448,0.05115969,88090.0,88070.0,0.22709]
[1741027038814,0.05115969,88090.0,88071.0,0.02445715]
[1741027039035,0.227037,88092.0,88071.0,0.02445715]
[1741027039036,0.227038,88091.0,88072.0,0.227086]
[1741027039240,0.227031,88094.0,88073.0,0.22867322]
[1741027039408,0.640452,88119.0,88063.0,0.02688063]
[1741027039558,0.640452,88119.0,88076.0,0.227076]
[1741027039559,0.227037,88092.0,88076.0,0.227076]
[1741027039754,0.46779181,88100.0,88062.0,0.0805]
[1741027040173,0.00191526,88099.0,88063.0,0.00158955]
[1741027040396,0.3,88095.0,88052.0,0.1844184]
[1741027040598,0.00191526,88094.0,88053.0,0.00158964]
[1741027040798,0.227073,88078.0,88061.0,0.227114]
[1741027040996,0.227117,88060.0,88059.0,0.0003384]
[1741027041780,0.527117,88060.0,88059.0,0.0003384]
[1741027041997,0.227117,88060.0,88059.0,0.0003384]
[1741027042199,0.01780259,88060.0,88059.0,0.0003384]
[1741027042605,0.24491959,88060.0,88059.0,0.0003384]
[1741027043038,0.24491959,88060.0,88052.0,0.0003384]
[1741027043039,0.22713,88055.0,88054.0,0.0088066]
[1741027043574,0.22712,88059.0,88054.0,0.0088066]
[1741027043912,0.22713,88055.0,88054.0,0.0088066]
[1741027044120,0.01780259,88060.0,88054.0,0.0088066]
[1741027044121,0.22712,88059.0,88054.0,0.0088066]
[1741027044401,0.22713,88055.0,88054.0,0.0088066]
[1741027044987,0.227121,88059.0,88054.0,0.0088066]
[1741027045161,0.1,88114.0,88054.0,0.00328089]
[1741027045359,0.22713,88055.0,88054.0,0.00328089]
[1741027045563,0.54167085,88055.0,88054.0,0.00328089]
[1741027045791,0.54167085,88055.0,88003.0,0.0755]
[1741027045792,0.31454085,88050.0,88028.0,4e-07]
[1741027045994,0.31454085,88050.0,87994.0,0.0003392]
[1741027045995,0.227275,87999.0,87994.0,0.0003392]
[1741027046195,0.227311,87985.0,87984.0,0.0003386]
[1741027046393,0.227311,87985.0,87965.0,0.0133447]
[1741027046394,0.1,87984.0,87965.0,5e-07]
[1741027046596,0.227342,87973.0,87911.0,0.00159218]
[1741027046750,0.3,87959.0,87911.0,0.00159218]
[1741027046957,0.00191526,87958.0,87912.0,0.00810922]
[1741027047201,0.227497,87913.0,87912.0,0.00810922]
[1741027047536,0.227497,87913.0,87893.0,0.099732]
[1741027047537,0.3,87928.0,87882.0,0.077]
[1741027047813,0.46779181,87940.0,87883.0,0.01063418]
[1741027047970,0.3,87937.0,87883.0,0.23820818]
[1741027048175,0.00191526,87936.0,87883.0,0.00904147]
[1741027048409,0.227517,87906.0,87883.0,0.01063431]
[1741027048723,0.3,87934.0,87896.0,0.227541]
[1741027048915,0.46779181,87940.0,87897.0,0.02434669]
[1741027049153,0.00191526,87939.0,87897.0,0.00159259]
[1741027049295,0.01454085,87938.0,87883.0,0.00904147]
[1741027049499,0.01454085,87931.0,87883.0,0.00904147]
[1741027049708,0.46779181,87920.0,87879.0,7e-05]
[1741027049906,0.46779181,87920.0,87893.0,0.227549]
[1741027049907,0.227509,87909.0,87893.0,0.227549]
[1741027050108,0.46779181,87920.0,87879.0,7e-05]
[1741027050297,0.227522,87904.0,87880.0,0.01131467]
[1741027050494,0.46779181,87920.0,87880.0,0.01131467]
[1741027050495,0.46779181,87920.0,87881.0,0.00159283]
[1741027050718,0.46779181,87920.0,87882.0,0.00159262]
[1741027050941,0.00191526,87919.0,87880.0,0.01131467]
[1741027051252,0.00191526,87919.0,87883.0,0.00159261]
[1741027051466,0.2275,87913.0,87881.0,0.0126054]
[1741027051670,0.227504,87911.0,87894.0,0.227544]
[1741027051872,0.46779181,87930.0,87881.0,0.0126054]
[1741027051873,0.01454085,87929.0,87881.0,0.0126054]
[1741027052016,0.227531,87900.0,87886.0,0.227565]
[1741027052213,0.3,87929.0,87891.0,0.227554]
[1741027052415,0.00191526,87928.0,87891.0,0.02291467]
[1741027052736,0.00191526,87928.0,87888.0,0.22756]
[1741027052902,0.00191526,87928.0,87883.0,0.227575]
[1741027053107,0.227537,87898.0,87881.0,0.227578]
[1741027053311,0.227513,87907.0,87882.0,0.0015928]
[1741027053524,0.3,87929.0,87883.0,0.00159279]
[1741027053721,0.00191526,87928.0,87879.0,0.0002403]
[1741027053924,0.00191526,87928.0,87880.0,0.0015928]
[1741027054170,0.341177,87931.0,87894.0,0.227544]
[1741027054382,0.46779181,87940.0,87895.0,0.0227544]
[1741027054383,0.227456,87929.0,87895.0,0.0227544]
[1741027054561,0.00191526,87928.0,87879.0,0.00183287]
[1741027054764,0.00191526,87938.0,87880.0,0.00159257]
[1741027054959,0.01783019,87923.0,87922.0,0.227474]
[1741027055218,1.236616,87981.0,87882.0,0.1285]
[1741027055219,0.46779181,87970.0,87905.0,0.17676]
[1741027055436,0.00191526,87969.0,87906.0,0.0192678]
[1741027055601,0.227442,87935.0,87919.0,0.227482]
[1741027055805,0.46779181,87950.0,87910.0,0.227503]
[1741027056022,0.46779181,87950.0,87911.0,0.00159218]
[1741027056216,0.46779181,87950.0,87929.0,0.227455]
[1741027056420,0.46779181,87970.0,87930.0,0.02433747]
[1741027056627,0.46779181,87970.0,87906.0,0.017676]
[1741027056628,0.46779181,87950.0,87907.0,0.00159179]
[1741027056855,0.00191526,87949.0,87908.0,0.0015922]
[1741027057061,0.30191526,87949.0,87905.0,0.17676]
[1741027057214,0.46779181,87930.0,87905.0,0.17676]
[1741027057424,0.227433,87938.0,87906.0,0.00159255]
[1741027057625,0.227442,87935.0,87907.0,0.227513]
[1741027057826,0.3,87949.0,87910.0,0.227505]
[1741027058029,0.46779181,87950.0,87911.0,0.00159206]
[1741027058256,0.46779181,87950.0,87912.0,0.227499]
[1741027058430,0.00191526,87949.0,87913.0,0.00159211]
[1741027058642,0.00191526,87949.0,87914.0,0.02290911]
[1741027058899,0.3,87959.0,87913.0,0.00159211]
[1741027058900,0.227439,87936.0,87920.0,0.227479]
[1741027059197,0.46779181,87970.0,87921.0,0.22906811]
[1741027059326,0.00191526,87969.0,87922.0,0.02449881]
[1741027059527,0.00191526,87979.0,87934.0,0.0793]
[1741027059748,0.227438,87936.0,87911.0,0.00159159]
[1741027059960,0.01782215,87968.0,87912.0,0.0793]
[1741027060163,0.01782215,87968.0,87913.0,0.00968111]
[1741027060387,0.227377,87960.0,87913.0,0.00968111]
[1741027060593,0.01782215,87968.0,87913.0,0.00968111]
[1741027060799,0.227408,87948.0,87929.0,0.227455]
[1741027060972,0.227408,87948.0,87913.0,0.00968111]
[1741027060973,0.341044,87965.0,87922.0,0.227474]
[1741027061172,0.01172817,87984.0,87923.0,0.02433936]
[1741027061379,0.01782319,87944.0,87923.0,0.00159196]
[1741027061579,0.01454085,87977.0,87923.0,0.00159196]
[1741027061858,0.1,87993.0,87913.0,0.00808921]
[1741027061859,0.01782434,87939.0,87932.0,0.227446]
[1741027062061,0.227395,87953.0,87934.0,0.227442]
[1741027062327,0.46779181,87980.0,87935.0,0.27467847]
[1741027062522,0.01782329,87938.0,87937.0,0.227435]
[1741027062723,0.00191526,87956.0,87920.0,0.173]
[1741027062925,0.3,87979.0,87880.0,0.46779181]
[1741027062926,0.01782418,87938.0,87893.0,0.17284]
[1741027063079,0.227471,87924.0,87912.0,0.09212]
[1741027063279,0.1,87973.0,87912.0,0.0793]
[1741027063502,0.01782815,87922.0,87893.0,0.25464]
[1741027063708,0.227546,87894.0,87893.0,0.0818]
[1741027063916,0.227482,87919.0,87879.0,0.0002403]
[1741027064077,0.22752,87905.0,87879.0,0.00183316]
[1741027064328,0.227516,87906.0,87887.0,0.227563]
[1741027064533,0.227499,87913.0,87888.0,0.04710631]
[1741027064775,0.227511,87908.0,87888.0,0.00159271]
[1741027064993,0.01783088,87915.0,87879.0,0.0002403]
[1741027065147,0.227509,87909.0,87880.0,0.00159284]
[1741027065353,0.227515,87906.0,87887.0,0.227563]
[1741027065550,0.3,87929.0,87889.0,0.227557]
[1741027065870,0.00191526,87928.0,87879.0,0.0002403]
[1741027066069,0.227548,87894.0,87880.0,0.00159284]
[1741027066398,0.46779181,87930.0,87880.0,0.00159284]
[1741027066598,0.00191526,87929.0,87880.0,0.00159284]
[1741027067042,0.00191526,87929.0,87879.0,0.0002403]
[1741027067043,0.01454085,87928.0,87879.0,0.0002403]
[1741027067255,0.22756,87889.0,87879.0,0.0002403]
[1741027067607,0.227458,87928.0,87883.0,0.227574]
[1741027067770,0.00191526,87927.0,87892.0,0.227549]
[1741027067972,0.00191526,87927.0,87893.0,0.0227549]
[1741027068208,0.00191526,87927.0,87879.0,0.0002403]
[1741027068209,0.455113,87891.0,87879.0,0.00183302]
[1741027068429,0.01454085,87923.0,87879.0,0.0002403]
[1741027068679,0.341275,87906.0,87879.0,0.0002403]
[1741027068856,0.00191526,87905.0,87879.0,0.0002403]
[1741027069198,0.227552,87892.0,87879.0,0.0002403]
[1741027069393,0.3,87919.0,87880.0,0.0241184]
[1741027069539,0.227551,87893.0,87879.0,0.0002403]
[1741027069938,0.34123,87917.0,87879.0,0.0002403]
[1741027069939,0.227528,87902.0,87879.0,0.0002403]
[1741027070276,0.39561616,87940.0,87880.0,0.00159289]
[1741027070453,0.227483,87919.0,87899.0,0.227533]
[1741027070654,0.227483,87919.0,87879.0,0.0002403]
[1741027070655,0.39561616,87910.0,87879.0,0.0002403]
[1741027070864,0.227583,87880.0,87879.0,0.0002403]
[1741027071046,0.227565,87887.0,87879.0,0.0002403]
[1741027071242,0.227567,87886.0,87879.0,0.0002403]
[1741027071455,0.227583,87880.0,87879.0,0.0002403]
[1741027072704,0.24541941,87880.0,87879.0,0.0002403]
[1741027073208,0.227647,87855.0,87854.0,0.0001694]
[1741027073413,0.227691,87838.0,87837.0,0.0984]
[1741027073788,0.227691,87838.0,87837.0,0.09879353]
[1741027073963,0.227691,87838.0,87837.0,5.3e-07]
[1741027074164,0.24553773,87838.0,87837.0,5.3e-07]
[1741027074395,0.56007858,87838.0,87837.0,5.3e-07]
[1741027074582,0.54553773,87838.0,87837.0,5.3e-07]
[1741027074742,0.24553773,87838.0,87837.0,5.3e-07]
[1741027075176,0.26007858,87838.0,87837.0,5.3e-07]
[1741027075964,0.24223185,87838.0,87837.0,5.3e-07]
[1741027076760,0.527754,87814.0,87813.0,0.0003376]
[1741027076956,0.527754,87814.0,87813.0,0.00011925]
[1741027077155,0.54229485,87814.0,87813.0,2.5e-07]
[1741027077461,0.227754,87814.0,87813.0,2.5e-07]
[1741027077698,0.39561616,87840.0,87813.0,2.5e-07]
[1741027078047,0.39561616,87823.0,87791.0,0.0001696]
[1741027078176,0.00191526,87822.0,87791.0,0.00028899]
[1741027078375,0.00191526,87829.0,87791.0,0.00028899]
[1741027078573,0.00191526,87837.0,87791.0,0.00188366]
[1741027078798,0.39561616,87840.0,87791.0,0.00188328]
[1741027079131,0.227763,87811.0,87791.0,0.22810199]
[1741027079339,0.01784978,87826.0,87793.0,0.0757]
[1741027079573,0.01784978,87826.0,87795.0,0.0453]
[1741027079872,0.01784978,87826.0,87796.0,0.00159405]
[1741027080092,0.01784978,87826.0,87795.0,0.0453]
[1741027080285,0.01784978,87826.0,87791.0,0.00028899]
[1741027080286,0.227809,87793.0,87791.0,0.00028899]
[1741027080496,0.3,87819.0,87791.0,0.00028899]
[1741027080647,0.227811,87792.0,87791.0,0.00028899]
[1741027080868,0.527818,87789.0,87788.0,6.9e-07]
[1741027081065,0.527818,87789.0,87766.0,0.0003376]
[1741027081066,0.227876,87767.0,87766.0,0.0003376]
[1741027081269,0.39561616,87800.0,87766.0,0.0003376]
[1741027081481,0.00191526,87791.0,87766.0,0.00073065]
[1741027081668,0.004572,87797.0,87766.0,0.00073065]
[1741027081669,0.00191526,87796.0,87766.0,0.00073065]
[1741027081870,0.00191526,87796.0,87733.0,0.02715255]
[1741027081871,0.227915,87752.0,87733.0,0.02715255]
[1741027082074,0.3,87787.0,87716.0,0.00159562]
[1741027082385,0.01786071,87748.0,87716.0,0.00159562]
[1741027082599,0.227915,87752.0,87730.0,0.22797]
[1741027082783,0.01786222,87741.0,87731.0,0.00159557]
[1741027083120,0.3,87789.0,87731.0,0.00159557]
[1741027083121,0.00191526,87778.0,87731.0,0.00472501]
[1741027083288,0.00191526,87791.0,87740.0,0.39561616]
[1741027083488,0.00191526,87791.0,87771.0,0.227865]
[1741027083726,0.16624,87812.0,87741.0,0.04115683]
[1741027083727,0.00191526,87809.0,87772.0,0.00159503]
[1741027083937,0.34692,87834.0,87741.0,0.33956162]
[1741027083938,0.39561616,87820.0,87773.0,0.00159479]
[1741027084089,0.16628,87814.0,87757.0,0.0046055]
[1741027084293,0.341693,87798.0,87757.0,0.0046055]
[1741027084513,0.00191526,87797.0,87757.0,0.0046055]
[1741027084715,0.00191526,87807.0,87758.0,0.00159512]
[1741027084919,0.227793,87799.0,87742.0,0.0829]
[1741027085098,0.3,87779.0,87732.0,0.0486]
[1741027085315,0.00191526,87778.0,87722.0,0.22799]
[1741027085514,0.00191526,87778.0,87723.0,0.03284424]
[1741027085719,0.00191526,87778.0,87716.0,0.0829]
[1741027086057,0.227946,87740.0,87716.0,0.0829]
[1741027086261,0.2,87805.0,87737.0,0.227953]
[1741027086567,0.39561616,87760.0,87716.0,0.0829]
[1741027086768,0.39561616,87760.0,87689.0,0.456153]
[1741027086769,0.228029,87708.0,87695.0,0.0816]
[1741027086941,0.228029,87708.0,87686.0,0.0479]
[1741027087230,0.24256985,87708.0,87707.0,9e-07]
[1741027087377,0.54256985,87708.0,87707.0,9e-07]
[1741027087579,0.55415949,87708.0,87707.0,9e-07]
[1741027087790,0.01454085,87706.0,87659.0,0.228155]
[1741027087996,0.01454085,87706.0,87636.0,0.0479]
[1741027087997,0.00191526,87705.0,87668.0,0.0015969]
[1741027088173,0.00191526,87705.0,87667.0,0.01159091]
[1741027088718,0.00191526,87716.0,87668.0,0.00159666]
[1741027088937,0.011589,87737.0,87670.0,0.0799]
[1741027089086,0.228029,87708.0,87707.0,0.000171]
[1741027089429,0.228025,87710.0,87707.0,0.000171]
[1741027089430,0.228024,87710.0,87707.0,0.000171]
[1741027089631,0.22797,87731.0,87707.0,0.000171]
[1741027089774,0.455739,87770.0,87707.0,0.000171]
[1741027089775,0.39561616,87770.0,87707.0,0.000171]
[1741027089979,0.0343,87767.0,87710.0,0.0799]
[1741027090174,0.00191526,87766.0,87715.0,0.228009]
[1741027090375,0.00191526,87766.0,87716.0,0.00159568]
[1741027090627,0.00039683,87770.0,87769.0,0.22787]
[1741027091065,0.00039683,87770.0,87769.0,0.19987]
[1741027091201,0.00039683,87770.0,87769.0,0.047647]
[1741027091423,0.09485823,87810.0,87809.0,0.227767]
[1741027091623,0.08400101,87810.0,87809.0,0.227767]
[1741027091843,0.08400101,87810.0,87787.0,0.3]
[1741027091844,0.08400101,87810.0,87790.0,0.39561616]
[1741027092078,0.227767,87809.0,87770.0,0.39561616]
[1741027092241,0.227813,87791.0,87790.0,0.00011951]
[1741027093128,0.527813,87791.0,87790.0,5.1e-07]
[1741027093311,0.54235385,87791.0,87790.0,5.1e-07]
[1741027093847,0.227994,87722.0,87710.0,0.0467]
[1741027094164,0.00191526,87721.0,87706.0,0.0761]
[1741027094371,0.00191526,87748.0,87691.0,0.00159622]
[1741027094529,0.169,87764.0,87701.0,0.228046]
[1741027094530,0.034303,87762.0,87701.0,0.228046]
[1741027094769,0.3,87759.0,87692.0,0.228068]
[1741027094971,0.01786898,87720.0,87688.0,0.0761]
[1741027095185,0.01786898,87720.0,87719.0,0.228]
[1741027095384,0.01786898,87720.0,87707.0,0.00056783]
[1741027095586,0.00191526,87763.0,87707.0,0.00056783]
[1741027095587,0.00191526,87719.0,87707.0,0.00056783]
[1741027095816,0.228029,87708.0,87707.0,0.00056783]
[1741027096141,0.39561616,87760.0,87707.0,0.00056783]
[1741027096310,0.227995,87722.0,87707.0,0.00056783]
[1741027096629,0.00191526,87721.0,87707.0,0.00056783]
[1741027096786,0.30191526,87749.0,87707.0,0.00056783]
[1741027097161,0.228029,87708.0,87707.0,0.00056783]
[1741027097475,0.528029,87708.0,87707.0,8.3e-07]
[1741027097921,0.47422638,87717.0,87629.0,0.16928]
[1741027097922,0.57422638,87730.0,87638.0,0.10759923]
[1741027098099,0.47422638,87710.0,87638.0,0.00039233]
[1741027098302,0.01454085,87700.0,87640.0,0.228203]
[1741027098499,0.3,87692.0,87638.0,0.00039233]
[1741027098702,0.3,87687.0,87638.0,0.00039233]
[1741027099037,0.01454085,87685.0,87638.0,0.00039233]
[1741027099216,0.228208,87639.0,87638.0,0.00039233]
[1741027099564,1.140484,87682.0,87638.0,0.00039233]
[1741027099785,0.00199709,87681.0,87638.0,0.00039233]
[1741027099979,0.228208,87639.0,87638.0,0.00039233]
[1741027100689,0.228208,87639.0,87638.0,0.00017133]
[1741027100690,0.54274885,87639.0,87638.0,0.00017133]
[1741027101723,0.228208,87639.0,87638.0,0.00017133]
[1741027101930,0.1,87672.0,87638.0,0.00017133]
[1741027101931,0.47422638,87680.0,87638.0,0.00017133]
[1741027102147,0.00199729,87679.0,87638.0,0.00017133]
[1741027102355,0.01788443,87670.0,87638.0,0.00017133]
[1741027102576,0.228208,87639.0,87638.0,0.00017133]
[1741027102940,0.01788443,87670.0,87638.0,0.00017133]
[1741027103142,0.228208,87639.0,87638.0,0.00017133]
[1741027103912,0.24609433,87639.0,87638.0,0.00017133]
[1741027104113,0.01788633,87639.0,87638.0,0.00017133]
[1741027104251,0.24609433,87639.0,87638.0,0.00017133]
[1741027104667,0.54609433,87639.0,87638.0,0.00017133]
[1741027104886,0.24609433,87639.0,87638.0,0.00017133]
[1741027105268,0.23609433,87639.0,87638.0,0.00017133]
[1741027105465,0.228208,87639.0,87638.0,0.00017133]
[1741027105667,0.1,87689.0,87638.0,0.00017133]
[1741027105898,0.00199714,87660.0,87638.0,0.00017133]
[1741027106097,0.22814,87666.0,87638.0,0.00017133]
[1741027106476,0.228169,87655.0,87639.0,0.228208]
[1741027106641,0.228139,87666.0,87640.0,0.04565973]
[1741027106855,0.228159,87658.0,87643.0,0.228198]
[1741027107156,0.47422638,87690.0,87642.0,0.228199]
[1741027107332,0.00199666,87689.0,87638.0,0.00017133]
[1741027107531,0.00199651,87688.0,87638.0,0.00017133]
[1741027107736,0.228154,87661.0,87644.0,0.228193]
[1741027107937,0.228208,87639.0,87638.0,0.00017133]
[1741027108138,0.3,87676.0,87638.0,0.00017133]
[1741027108139,0.01454085,87667.0,87638.0,0.00017133]
[1741027108338,1.10863353,87719.0,87638.0,0.00017133]
[1741027108339,0.228158,87659.0,87642.0,0.228198]
[1741027108519,0.00199666,87658.0,87638.0,0.00017133]
[1741027108721,0.00199689,87688.0,87638.0,0.00017133]
[1741027109667,0.00199689,87688.0,87641.0,0.228202]
[1741027109893,0.228149,87662.0,87645.0,0.228192]
[1741027110095,0.1,87718.0,87638.0,0.00017133]
[1741027110291,0.228081,87688.0,87660.0,0.228151]
[1741027110503,0.016928,87723.0,87670.0,0.228125]
[1741027110654,0.01195201,87696.0,87661.0,0.0228151]
[1741027110856,0.00199633,87695.0,87639.0,0.228208]
[1741027111061,0.22816,87658.0,87640.0,0.228206]
[1741027111279,0.47422638,87710.0,87638.0,0.000171]
[1741027111280,0.228204,87641.0,87638.0,0.000171]
[1741027111527,0.228208,87639.0,87638.0,0.000171]
[1741027111692,0.228237,87628.0,87627.0,3e-07]
[1741027111901,0.3,87627.0,87600.0,0.0001]
[1741027112103,0.228307,87601.0,87600.0,0.0001]
[1741027112483,0.228339,87589.0,87588.0,0.022]
[1741027112867,0.228339,87589.0,87550.0,0.0001701]
[1741027112868,0.228365,87579.0,87550.0,0.0001701]
[1741027113067,0.228412,87561.0,87560.0,0.0944714]
[1741027113288,0.02982838,87589.0,87560.0,0.09459086]
[1741027113490,0.00199867,87588.0,87560.0,0.09459086]
[1741027113858,0.00199859,87588.0,87560.0,0.09459086]
[1741027114202,0.228353,87584.0,87560.0,0.09459086]
[1741027114409,0.00199847,87583.0,87561.0,0.00945909]
[1741027114604,0.00199852,87588.0,87560.0,0.09459086]
[1741027114807,0.01789826,87578.0,87560.0,0.09459086]
[1741027114978,0.228412,87561.0,87560.0,0.09459086]
[1741027115173,0.528412,87561.0,87560.0,7.7e-07]
[1741027115374,0.228438,87551.0,87550.0,8.7e-07]
[1741027115576,0.528456,87544.0,87543.0,5.3e-07]
[1741027115986,0.57738385,87544.0,87543.0,5.3e-07]